bitfinex/quotes_ETHUSD_20250517
["timestamp","ask_amount","ask_price","bid_price","bid_amount"]
[1747452124068,4.03847576,2476.2,2475.9,25.9]
[1747452124268,4.0380088,2476.5,2475.9,28.53863199]
[1747452124493,4.03812796,2476.4,2475.9,28.53863199]
[1747452124703,4.03833485,2476.3,2475.9,28.53863199]
[1747452124909,4.0380998,2476.5,2476.0,0.814]
[1747452125077,0.7623,2477.0,2476.1,4.58849272]
[1747452125282,9.2743,2477.0,2476.1,4.58849272]
[1747452125595,4.03756304,2476.8,2476.2,4.03842986]
[1747452125793,4.03756304,2476.8,2476.3,0.8298]
[1747452126102,4.03754756,2476.8,2476.4,8.469]
[1747452126267,4.03739523,2476.9,2476.4,8.469]
[1747452126464,4.03707357,2477.1,2476.5,4.03782666]
[1747452126681,4.03732474,2476.9,2476.4,10.20653904]
[1747452127417,4.03732474,2476.9,2476.3,4.86800872]
[1747452127418,4.03771367,2476.7,2476.5,8.469]
[1747452127908,4.03743473,2476.9,2476.5,8.469]
[1747452128097,4.03741834,2476.9,2476.5,8.469]
[1747452128600,4.33664279,2477.2,2476.6,4.03778335]
[1747452128799,4.03697931,2477.1,2476.6,4.07815782]
[1747452129010,4.03695529,2477.2,2476.7,0.8298]
[1747452129210,4.03699477,2477.1,2476.8,17.435]
[1747452129411,4.03682803,2477.2,2476.8,17.435]
[1747452129709,4.03671323,2477.3,2476.9,0.04036829]
[1747452129905,4.03671323,2477.3,2477.0,8.47]
[1747452130711,4.03657329,2477.4,2477.0,8.47]
[1747452131017,0.8035,2477.8,2477.2,0.7742]
[1747452131324,4.03572929,2477.9,2477.4,0.55]
[1747452131609,4.03572929,2477.9,2477.5,8.47]
[1747452131819,4.03559604,2478.0,2477.5,8.47]
[1747452132374,0.8035,2478.1,2477.2,0.7742]
[1747452132684,4.03625052,2477.6,2477.3,8.469]
[1747452132880,4.03625052,2477.6,2477.2,0.7742]
[1747452132881,4.99211063,2478.0,2477.2,0.7742]
[1747452133098,4.03633585,2477.5,2477.3,8.469]
[1747452133296,4.03623398,2477.6,2477.3,8.469]
[1747452133911,4.03648986,2477.4,2477.3,8.469]
[1747452134075,0.95659812,2478.0,2477.3,8.469]
[1747452134271,4.036256,2477.6,2477.3,8.469]
[1747452134797,0.8035,2478.1,2477.4,0.55]
[1747452135108,4.03543678,2478.1,2477.6,0.7742]
[1747452135287,4.03552023,2478.0,2477.7,17.982]
[1747452135483,4.03552023,2478.0,2477.8,8.469]
[1747452135928,4.03493739,2478.4,2477.8,13.66838201]
[1747452136109,4.0348612,2478.4,2477.9,0.55]
[1747452136309,8.452,2478.5,2477.9,0.55]
[1747452136510,4.03518333,2478.3,2477.9,0.55]
[1747452136891,4.03518333,2478.3,2477.8,7.58482591]
[1747452137092,4.03521317,2478.2,2477.8,7.58482591]
[1747452137821,4.03510298,2478.3,2477.8,11.62066379]
[1747452138820,4.03390643,2479.0,2478.4,0.8115]
[1747452138979,4.03420642,2478.9,2478.5,8.50834241]
[1747452139184,4.03420642,2478.9,2478.6,17.431]
[1747452139496,4.03398128,2479.0,2478.6,17.431]
[1747452140218,4.03379598,2479.1,2478.6,17.431]
[1747452140527,4.03437285,2478.7,2478.6,17.431]
[1747452140715,4.03437285,2478.7,2478.6,25.897]
[1747452141503,5.22044524,2479.1,2478.6,25.897]
[1747452141504,4.03426552,2478.8,2478.6,25.897]
[1747452141707,12.46893445,2479.0,2478.6,25.897]
[1747452142016,4.03413354,2478.9,2478.6,25.897]
[1747452142316,4.0341059,2478.9,2478.6,26.661]
[1747452142715,4.03394694,2479.0,2478.6,26.661]
[1747452142917,4.03413128,2478.9,2478.6,26.661]
[1747452143107,4.03424578,2478.8,2478.6,26.661]
[1747452143492,4.03407463,2478.9,2478.6,26.661]
[1747452144322,4.03422921,2478.8,2478.6,26.661]
[1747452144820,4.03437285,2478.7,2478.6,17.431]
[1747452145019,12.45037285,2478.7,2478.6,17.431]
[1747452145223,4.03453562,2478.6,2478.5,8.466]
[1747452146120,4.03550997,2478.1,2477.9,17.426]
[1747452146325,4.03550997,2478.1,2478.0,8.466]
[1747452146502,4.03526787,2478.2,2478.0,8.466]
[1747452146890,4.03534966,2478.1,2478.0,8.466]
[1747452147527,1.32995593,2478.6,2478.0,9.016]
[1747452147822,4.03502795,2478.3,2478.0,9.016]
[1747452148215,9.2288,2478.8,2478.0,9.016]
[1747452148394,4.03473217,2478.5,2478.0,13.0513719]
[1747452148592,4.03473217,2478.5,2478.0,9.016]
[1747452148916,4.0349213,2478.4,2478.0,9.016]
[1747452149515,4.03505882,2478.3,2478.0,9.016]
[1747452149715,4.03476922,2478.5,2478.0,13.05150557]
[1747452149894,4.03481546,2478.5,2478.0,9.016]
[1747452150317,8.405,2478.7,2478.0,13.0513939]
[1747452150526,4.03480347,2478.5,2478.0,13.0513939]
[1747452150724,4.03381931,2479.1,2478.6,4.03446143]
[1747452150899,4.03381931,2479.1,2478.7,8.383]
[1747452151097,4.83035213,2479.4,2478.8,17.426]
[1747452151295,4.032849,2479.7,2479.0,4.81116809]
[1747452151296,4.03300879,2479.6,2479.0,4.81116809]
[1747452151543,4.033083,2479.5,2479.0,0.7774]
[1747452152038,4.033083,2479.5,2479.0,4.81122695]
[1747452152194,4.033083,2479.5,2479.0,0.7774]
[1747452152828,4.0332599,2479.4,2479.0,0.7774]
[1747452153133,0.80661989,2479.4,2479.0,0.7774]
[1747452153305,0.30530309,2479.9,2479.1,8.382]
[1747452153505,4.03294161,2479.6,2479.1,8.382]
[1747452153707,4.03331495,2479.4,2478.8,17.426]
[1747452153934,20.45139652,2479.3,2479.2,8.382]
[1747452154228,4.03437285,2478.7,2478.6,8.382]
[1747452154429,4.03437285,2478.7,2477.2,0.7774]
[1747452154430,4.0346984,2478.5,2477.2,0.7774]
[1747452154730,8.452,2478.5,2477.4,8.7774]
[1747452155027,8.452,2478.5,2477.6,4.03611257]
[1747452155193,8.452,2478.5,2477.5,25.805]
[1747452155194,0.92491,2478.4,2477.8,0.55]
[1747452155529,4.95981198,2478.4,2477.8,4.5857301]
[1747452155733,4.95981198,2478.4,2477.8,4.0357301]
[1747452155965,4.03355921,2479.2,2478.0,4.03535003]
[1747452156136,4.03426277,2478.8,2478.2,0.55]
[1747452156434,0.7946,2479.1,2478.4,0.55]
[1747452156761,4.0337873,2479.1,2478.5,21.45859401]
[1747452157065,4.0337873,2479.1,2478.6,12.41652793]
[1747452157197,1.65682243,2479.1,2478.7,4.58437231]
[1747452157399,4.03345298,2479.3,2478.9,0.55]
[1747452157599,4.03329328,2479.4,2478.9,0.55]
[1747452157827,4.03295864,2479.6,2479.1,0.55]
[1747452158042,4.0327504,2479.7,2479.2,8.382]
[1747452158234,4.51575514,2479.6,2479.2,8.382]
[1747452158529,4.03309942,2479.5,2479.2,8.382]
[1747452158832,4.03309942,2479.5,2479.1,0.55]
[1747452159126,4.03339652,2479.3,2479.2,8.381]
[1747452159334,4.03330257,2479.4,2479.2,8.381]
[1747452160117,0.85491408,2479.4,2479.3,8.381]
[1747452160317,4.03323384,2479.4,2479.3,8.381]
[1747452160857,4.03379312,2479.1,2478.9,0.55]
[1747452161149,4.03353376,2479.3,2479.0,8.381]
[1747452161352,4.03372191,2479.1,2479.0,8.381]
[1747452161555,4.03402383,2479.0,2478.6,0.55]
[1747452161733,4.03407445,2478.9,2478.8,0.55]
[1747452162133,4.03393875,2479.0,2478.8,0.55]
[1747452162329,12.5332647,2479.4,2478.8,0.55]
[1747452162330,8.5,2479.4,2478.8,0.55]
[1747452162534,4.03334122,2479.4,2479.0,0.55]
[1747452162732,4.03340246,2479.3,2479.0,1.3447]
[1747452164853,4.03307118,2479.5,2478.8,0.55]
[1747452165075,4.03363459,2479.2,2478.8,0.55]
[1747452165223,4.03274589,2479.7,2478.8,1.52257]
[1747452165420,4.03331381,2479.4,2479.1,0.7947]
[1747452165623,0.756,2480.1,2479.3,0.55]
[1747452165859,4.03307118,2479.5,2479.4,17.97]
[1747452166225,4.03307118,2479.5,2479.4,17.42]
[1747452167740,8.454,2480.0,2479.4,17.42]
[1747452167939,4.03307118,2479.5,2479.4,17.42]
[1747452169865,4.03298806,2479.6,2479.4,17.42]
[1747452170161,4.03307118,2479.5,2479.4,17.42]
[1747452170460,4.03307118,2479.5,2479.4,25.8]
[1747452170978,4.03282859,2479.7,2479.4,25.8]
[1747452171370,4.03262712,2479.8,2479.4,25.8]
[1747452171723,0.756,2480.3,2479.5,0.55]
[1747452171929,4.78778118,2480.3,2479.6,4.03290853]
[1747452172358,4.0319329,2480.2,2479.6,4.03285334]
[1747452172531,4.03227739,2480.0,2479.5,4.58299776]
[1747452172732,4.03268382,2479.8,2479.6,1.16681599]
[1747452172956,0.756,2480.3,2479.6,1.16681599]
[1747452173165,4.78778394,2480.3,2479.6,1.16681599]
[1747452173342,0.756,2480.3,2479.6,1.16681599]
[1747452173543,4.03249636,2479.9,2479.6,1.16681599]
[1747452174251,4.03307118,2479.5,2479.4,18.1764]
[1747452174451,4.03307118,2479.5,2479.4,25.799]
[1747452175488,4.03307118,2479.5,2479.4,17.42]
[1747452175636,4.03307118,2479.5,2479.4,25.799]
[1747452178442,4.03307118,2479.5,2479.4,17.42]
[1747452178650,5.7544703,2479.5,2479.4,25.799]
[1747452179866,4.03386647,2479.1,2478.8,0.7564]
[1747452180059,4.03396328,2479.0,2478.9,8.379]
[1747452180270,4.0342101,2478.8,2478.7,17.417]
[1747452180475,4.0342101,2478.8,2478.7,25.796]
[1747452180676,4.84103862,2478.8,2478.7,17.417]
[1747452181023,13.60203862,2478.8,2478.7,17.417]
[1747452181288,4.03534966,2478.1,2478.0,17.417]
[1747452181439,4.03534966,2478.1,2478.0,25.796]
[1747452183098,0.761,2478.7,2478.0,28.3756]
[1747452183245,4.03429535,2478.8,2478.2,0.55]
[1747452183973,4.79493275,2479.0,2478.4,0.55]
[1747452184175,4.03404735,2478.9,2478.5,8.38]
[1747452184364,4.03421041,2478.8,2478.5,8.38]
[1747452185086,8.375,2479.1,2478.6,0.55]
[1747452185297,8.375,2479.1,2478.0,20.8053]
[1747452185445,4.03534966,2478.1,2478.0,17.417]
[1747452185779,4.03534966,2478.1,2478.0,25.798]
[1747452186103,4.0352169,2478.2,2478.0,25.798]
[1747452186788,4.03495595,2478.4,2478.0,25.798]
[1747452186995,4.03495595,2478.4,2478.0,28.3778]
[1747452187490,0.7753,2479.1,2478.1,1.3416]
[1747452187800,8.39,2479.3,2478.5,0.7916]
[1747452188000,8.389,2479.3,2478.7,0.55]
[1747452188200,6.31155661,2479.8,2478.7,0.55]
[1747452188201,4.03250355,2479.9,2479.1,0.7916]
[1747452188411,4.03259076,2479.8,2479.3,4.03336193]
[1747452188580,13.20856915,2480.0,2479.4,4.03309325]
[1747452188581,4.03233708,2480.0,2479.4,4.03309325]
[1747452188768,4.03206762,2480.2,2479.5,0.55]
[1747452188970,4.03234933,2480.0,2479.5,1.00831884]
[1747452189277,4.03256724,2479.9,2479.5,1.00831884]
[1747452189481,4.03234101,2480.0,2479.5,5.04136984]
[1747452189708,4.03259402,2479.8,2479.2,17.421]
[1747452190008,4.03259402,2479.8,2479.6,8.381]
[1747452190189,4.03286575,2479.7,2479.2,17.421]
[1747452190392,4.03260575,2479.8,2479.3,8.381]
[1747452190796,4.03276641,2479.7,2479.3,8.381]
[1747452191372,4.03261264,2479.8,2479.4,0.04032822]
[1747452191573,4.03237617,2480.0,2479.4,4.03309063]
[1747452191895,8.389,2480.1,2479.5,8.38]
[1747452192094,4.03290853,2479.6,2479.5,8.38]
[1747452192592,4.0331259,2479.5,2479.2,17.421]
[1747452192797,4.0331259,2479.5,2479.3,8.38]
[1747452193105,4.03283412,2479.7,2479.3,8.38]
[1747452193306,4.0327581,2479.7,2479.3,8.38]
[1747452193603,8.8389,2480.0,2479.3,11.44262464]
[1747452193807,4.03253868,2479.9,2479.4,0.04032717]
[1747452194303,4.03266769,2479.8,2479.3,15.4758972]
[1747452194485,4.03243374,2479.9,2479.3,11.44262464]
[1747452194686,4.03272463,2479.8,2479.3,11.44262464]
[1747452194998,4.03265121,2479.8,2479.4,1.08754566]
[1747452195192,4.03225806,2480.0,2479.2,17.421]
[1747452195395,4.03295395,2479.6,2479.3,8.379]
[1747452195712,8.0,2480.0,2479.4,8.379]
[1747452195881,4.03258327,2479.8,2479.4,8.379]
[1747452196084,2.2788697,2480.1,2479.4,12.41214804]
[1747452196085,4.03238949,2480.0,2479.4,12.41214804]
[1747452196290,4.03250005,2479.9,2479.5,1.2412148]
[1747452196717,4.03232642,2480.0,2479.5,5.27424888]
[1747452196880,4.03232642,2480.0,2479.6,0.8268]
[1747452197208,4.03209988,2480.1,2479.6,0.8268]
[1747452197421,0.7719,2480.6,2479.7,0.55]
[1747452197595,4.03208303,2480.2,2479.7,0.55]
[1747452197792,4.03235485,2480.0,2479.7,0.66510233]
[1747452198084,4.03222073,2480.1,2479.8,8.379]
[1747452198414,9.1339,2480.6,2479.8,8.379]
[1747452198415,4.03197784,2480.2,2479.8,8.379]
[1747452198591,4.0318555,2480.3,2479.8,12.41156305]
[1747452198793,8.354,2480.4,2479.9,4.07265358]
[1747452199108,4.03184707,2480.3,2479.8,12.41150408]
[1747452199326,4.03184707,2480.3,2479.9,1.24115041]
[1747452200106,4.03168604,2480.4,2479.9,5.27355145]
[1747452200416,4.0318459,2480.3,2479.9,1.24115041]
[1747452200910,4.03195245,2480.2,2479.9,1.24115041]
[1747452201120,4.03209548,2480.1,2480.0,8.378]
[1747452202822,4.03214367,2480.1,2480.0,8.378]
[1747452203423,12.36214367,2480.1,2480.0,8.378]
[1747452204003,4.03214367,2480.1,2480.0,8.378]
[1747452204529,4.03209548,2480.1,2480.0,8.378]
[1747452204706,5.74808832,2480.1,2480.0,8.378]
[1747452205960,1.71599284,2480.1,2479.3,0.8268]
[1747452206120,4.03314285,2479.5,2479.4,8.378]
[1747452206616,4.03298826,2479.6,2479.4,8.378]
[1747452206840,4.03208115,2480.2,2479.4,11.04058]
[1747452207138,4.03250627,2479.9,2479.4,15.07376193]
[1747452207342,0.7557,2480.6,2479.8,0.79]
[1747452207541,4.03162357,2480.4,2479.9,12.41034362]
[1747452207714,4.03162357,2480.4,2480.0,1.4875903]
[1747452208049,4.03162357,2480.4,2480.1,17.415]
[1747452208347,4.03133457,2480.6,2480.1,17.415]
[1747452208513,4.0316089,2480.4,2480.1,17.415]
[1747452209054,4.0319329,2480.2,2480.1,17.415]
[1747452209214,4.0319329,2480.2,2480.1,25.793]
[1747452210339,4.03183824,2480.3,2480.1,25.793]
[1747452210975,4.03105927,2480.8,2480.3,4.03174337]
[1747452211180,0.7597,2481.2,2480.5,4.03131454]
[1747452211337,4.03025213,2481.3,2480.7,4.03097731]
[1747452211668,4.03025213,2481.3,2480.8,1.3541133]
[1747452211877,4.03006236,2481.4,2480.9,0.55]
[1747452212183,4.03006236,2481.4,2481.0,18.1728]
[1747452212331,4.03006236,2481.4,2481.1,8.308]
[1747452212535,4.03028058,2481.3,2481.1,8.308]
[1747452212753,4.03030791,2481.2,2481.1,8.308]
[1747452213166,4.03018316,2481.3,2481.1,8.308]
[1747452213367,4.03010449,2481.4,2481.1,8.308]
[1747452213871,4.03030791,2481.2,2481.1,8.308]
[1747452214682,4.03047035,2481.1,2481.0,17.414]
[1747452214848,4.03047035,2481.1,2480.4,0.7588]
[1747452214849,4.03144527,2480.5,2480.4,0.7588]
[1747452215049,4.03144527,2480.5,2480.4,9.0648]
[1747452215766,4.03058002,2481.1,2480.4,9.0648]
[1747452216075,4.03079527,2480.9,2480.3,17.411]
[1747452216234,4.03079527,2480.9,2480.5,8.306]
[1747452216235,4.03128275,2480.6,2480.5,8.306]
[1747452218180,12.32732695,2480.6,2480.5,8.306]
[1747452218533,4.03132695,2480.6,2480.5,8.306]
[1747452220476,5.66807406,2480.6,2480.5,8.306]
[1747452220784,4.0316078,2480.4,2480.3,17.411]
[1747452220967,4.0316078,2480.4,2480.3,25.717]
[1747452221379,1.63674711,2480.6,2480.3,25.717]
[1747452221681,4.03136697,2480.6,2480.3,26.5475]
[1747452222181,4.0316078,2480.4,2480.3,17.411]
[1747452222372,4.0316078,2480.4,2480.3,25.717]
[1747452222886,4.03144588,2480.5,2480.3,25.717]
[1747452224179,12.33693448,2480.9,2480.3,29.7486588]
[1747452224493,4.03109088,2480.8,2480.3,29.7486588]
[1747452224856,4.03109088,2480.8,2480.4,0.04031173]
[1747452225185,4.03114056,2480.7,2480.3,25.717]
[1747452226369,4.03114056,2480.7,2480.3,29.09509353]
[1747452226762,4.03087129,2480.9,2480.5,0.8305]
[1747452227180,4.03127783,2480.7,2480.5,0.8305]
[1747452227375,4.03140806,2480.6,2480.3,17.411]
[1747452227694,4.0316078,2480.4,2480.3,17.411]
[1747452227896,4.0316078,2480.4,2480.3,25.717]
[1747452229102,4.0312002,2480.7,2480.3,25.717]
[1747452229770,4.03129979,2480.6,2480.3,25.717]
[1747452230684,4.03119456,2480.7,2480.3,25.717]
[1747452231295,4.03086896,2480.9,2480.4,0.55]
[1747452231701,4.03086896,2480.9,2480.4,4.58152611]
[1747452232007,4.03054008,2481.1,2480.6,4.86177799]
[1747452232211,0.8159,2481.4,2480.6,0.8305]
[1747452232212,4.03089099,2480.9,2480.6,0.8305]
[1747452232413,4.03099969,2480.8,2480.7,8.306]
[1747452233206,4.84597994,2481.4,2480.7,9.21965]
[1747452233412,4.03065329,2481.0,2480.7,9.21965]
[1747452233713,4.03020836,2481.3,2480.7,9.21965]
[1747452234020,4.03030929,2481.2,2480.7,13.25063148]
[1747452234236,4.03020506,2481.3,2480.8,5.84218602]
[1747452234383,4.03002743,2481.4,2480.9,5.41122367]
[1747452234584,4.03005821,2481.4,2480.9,5.41127522]
[1747452234783,4.03015248,2481.3,2480.9,1.3805]
[1747452235278,4.03006852,2481.4,2480.9,5.41129235]
[1747452235512,4.0301761,2481.3,2481.0,0.7222529]
[1747452235812,9.0789,2481.7,2481.0,0.7222529]
[1747452236122,11.3577697,2481.7,2481.1,8.305]
[1747452236283,4.03046052,2481.2,2481.1,8.305]
[1747452236681,4.02983135,2481.5,2480.6,0.7881]
[1747452236682,4.0310633,2480.8,2480.6,0.7881]
[1747452236916,13.10638205,2481.2,2480.7,8.304]
[1747452237092,0.814,2481.2,2480.7,9.1344]
[1747452237299,8.0,2481.3,2480.8,0.7881]
[1747452237483,4.03060987,2481.1,2480.8,0.7881]
[1747452237685,4.03066612,2481.0,2480.8,0.7881]
[1747452237983,4.03066612,2481.0,2480.7,9.1344]
[1747452237984,4.03095775,2480.8,2480.7,8.304]
[1747452238190,8.0,2481.3,2480.7,8.304]
[1747452238399,4.0309547,2480.9,2480.7,9.21321]
[1747452238594,4.0309547,2480.9,2480.7,8.304]
[1747452238808,4.03095775,2480.8,2480.7,8.304]
[1747452239007,4.03128275,2480.6,2480.5,0.7881]
[1747452239202,4.03119509,2480.7,2480.5,10.91201]
[1747452240086,4.03084369,2480.9,2480.5,10.91201]
[1747452240686,4.03096856,2480.8,2480.5,10.91201]
[1747452240895,4.03128275,2480.6,2480.5,10.91201]
[1747452241243,4.03079809,2480.9,2480.5,10.91201]
[1747452241408,4.0310408,2480.8,2480.6,1.091201]
[1747452241707,4.03112024,2480.7,2480.6,1.091201]
[1747452241910,4.03072062,2481.0,2480.6,1.091201]
[1747452242644,4.03054969,2481.1,2480.6,5.12239455]
[1747452242812,4.03054969,2481.1,2480.7,1.2390593]
[1747452243243,6.22564563,2481.5,2480.7,1.2390593]
[1747452243417,4.03136772,2480.6,2480.3,18.2083]
[1747452243748,4.03136772,2480.6,2480.4,8.256]
[1747452244132,4.83784534,2481.0,2480.3,18.2083]
[1747452244330,4.03136437,2480.6,2480.4,8.256]
[1747452244539,4.03144527,2480.5,2480.3,17.411]
[1747452244721,12.2736078,2480.4,2479.6,17.407]
[1747452245039,4.03261378,2479.8,2479.7,8.256]
[1747452245244,4.03248858,2479.9,2479.7,8.256]
[1747452245421,4.03258327,2479.8,2479.7,8.256]
[1747452245827,4.03248708,2479.9,2479.7,8.256]
[1747452246023,4.03258327,2479.8,2479.7,8.256]
[1747452246516,4.03249288,2479.9,2479.7,8.256]
[1747452246943,4.03258327,2479.8,2479.7,8.256]
[1747452247325,3.90702249,2480.3,2479.7,8.256]
[1747452247553,2.07730293,2482.7,2479.7,8.256]
[1747452247554,0.8313,2480.8,2480.0,0.55]
[1747452247753,0.8313,2480.8,2480.2,4.5819329]
[1747452248055,9.0793,2481.1,2480.5,0.55]
[1747452248233,4.03039128,2481.2,2480.7,4.03110441]
[1747452248558,4.03011145,2481.4,2481.0,1.301]
[1747452248559,4.03000747,2481.4,2481.0,1.301]
[1747452248868,4.03008949,2481.4,2481.0,1.301]
[1747452249161,4.02991889,2481.5,2481.0,2.01944727]
[1747452249327,10.45979718,2481.8,2481.0,2.01944727]
[1747452249328,4.02958171,2481.7,2481.1,4.0303621]
[1747452249657,4.02943756,2481.8,2481.3,0.55]
[1747452249964,4.02991199,2481.5,2481.4,8.257]
[1747452250151,12.28820101,2481.9,2481.1,0.55]
[1747452250320,0.8313,2481.6,2481.2,8.257]
[1747452250520,4.02998307,2481.4,2481.3,8.257]
[1747452250819,4.02998307,2481.4,2480.7,0.751]
[1747452250820,4.03043095,2481.2,2480.7,0.751]
[1747452251049,4.03043095,2481.2,2480.8,8.257]
[1747452251255,4.03026162,2481.3,2480.8,8.257]
[1747452251454,4.03003865,2481.4,2480.8,11.54174727]
[1747452251615,4.03027621,2481.3,2480.9,0.55]
[1747452251815,12.28571292,2481.6,2480.9,4.58079481]
[1747452252053,4.03010385,2481.4,2480.9,0.55]
[1747452253145,4.03015162,2481.3,2480.9,0.55]
[1747452253345,4.03062229,2481.1,2480.8,0.55]
[1747452253523,4.03062229,2481.1,2481.0,8.257]
[1747452254779,4.03032838,2481.2,2481.0,8.257]
[1747452254967,4.03015849,2481.3,2481.1,0.8257]
[1747452255160,12.26884562,2481.5,2481.1,0.8257]
[1747452255472,4.03017205,2481.3,2481.1,0.8257]
[1747452255970,4.03006148,2481.4,2481.1,0.8257]
[1747452256655,8.234,2481.6,2481.1,0.8257]
[1747452256857,4.0302298,2481.3,2481.0,8.257]
[1747452257044,4.03032995,2481.2,2481.0,8.257]
[1747452257948,4.03047035,2481.1,2481.0,8.257]
[1747452258956,4.03019985,2481.3,2481.0,8.257]
[1747452259263,4.03034699,2481.2,2481.0,8.257]
[1747452259461,4.03047035,2481.1,2481.0,8.257]
[1747452259693,4.03030887,2481.2,2481.0,8.257]
[1747452260048,4.03022074,2481.3,2481.0,8.257]
[1747452260248,4.03034548,2481.2,2480.7,4.78206399]
[1747452260487,4.03030791,2481.2,2480.8,8.806]
[1747452260849,4.03022074,2481.3,2480.8,8.806]
[1747452261321,4.03041034,2481.2,2480.8,8.806]
[1747452261520,4.03048399,2481.1,2480.8,8.806]
[1747452261821,4.03048399,2481.1,2480.9,0.9557]
[1747452262323,4.03039659,2481.2,2480.9,0.9557]
[1747452262680,4.02984851,2481.5,2480.9,0.9557]
[1747452262877,8.7724,2482.0,2481.1,0.8086]
[1747452263221,4.02983263,2481.5,2481.1,0.8086]
[1747452264112,4.02950986,2481.7,2481.1,0.8086]
[1747452264315,4.03030791,2481.2,2480.9,1.7643]
[1747452264479,4.03030791,2481.2,2481.0,8.256]
[1747452264680,4.03030791,2481.2,2481.1,1.00203]
[1747452265237,4.03030791,2481.2,2481.0,8.256]
[1747452265527,4.03027032,2481.3,2481.1,8.256]
[1747452265888,4.03001495,2481.4,2481.1,8.256]
[1747452266520,8.202,2481.6,2481.1,8.256]
[1747452266724,4.03030413,2481.3,2481.1,8.256]
[1747452266895,4.03030791,2481.2,2481.1,8.256]
[1747452267084,4.03030791,2481.2,2481.1,9.25803]
[1747452268023,4.03049764,2481.1,2480.9,1.7643]
[1747452268224,4.03049764,2481.1,2481.0,8.256]
[1747452271848,6.22544114,2481.1,2481.0,8.256]
[1747452273733,4.03049764,2481.1,2481.0,8.256]
[1747452276057,4.81271077,2481.3,2481.0,8.256]
[1747452276369,4.03014955,2481.3,2481.1,0.8256]
[1747452276555,4.03014955,2481.3,2481.0,8.256]
[1747452277664,4.02969735,2481.6,2481.0,8.256]
[1747452277865,12.16269735,2481.6,2481.0,8.256]
[1747452278573,4.03005806,2481.4,2481.1,8.173]
[1747452278748,0.8229,2481.4,2480.6,18.2084]
[1747452278920,0.8229,2481.4,2480.7,9.99384]
[1747452278921,4.03095775,2480.8,2480.7,9.99384]
[1747452279121,4.03095775,2480.8,2480.7,8.173]
[1747452281565,4.03128275,2480.6,2480.0,8.174]
[1747452281861,4.03225806,2480.0,2479.9,17.406]
[1747452282037,12.18925806,2480.0,2479.9,25.58]
[1747452282367,4.03339652,2479.3,2479.2,25.58]
[1747452282552,12.97169652,2479.3,2479.2,8.174]
[1747452282730,4.80769652,2479.3,2479.2,8.174]
[1747452283085,12.97169652,2479.3,2479.2,8.174]
[1747452284729,0.7743,2479.3,2479.2,8.174]
[1747452285063,4.03317132,2479.5,2479.2,8.9914]
[1747452285277,4.03295995,2479.6,2479.2,8.9914]
[1747452285646,0.756,2480.4,2479.5,0.55]
[1747452285977,0.756,2480.7,2479.9,4.03242066]
[1747452286176,4.03128275,2480.6,2480.0,8.71176207]
[1747452286347,4.03163431,2480.4,2480.0,8.71176207]
[1747452286540,8.192,2480.7,2480.0,0.53576207]
[1747452286786,8.192,2480.7,2480.1,8.176]
[1747452286787,4.03188474,2480.3,2480.1,8.176]
[1747452287076,4.03163199,2480.4,2480.1,8.176]
[1747452287535,4.03185367,2480.3,2480.1,8.176]
[1747452288279,4.0319329,2480.2,2480.1,8.176]
[1747452289589,4.03247062,2479.9,2479.6,17.41]
[1747452289764,4.03231994,2480.0,2479.7,8.176]
[1747452289944,4.03203724,2480.2,2479.8,0.55]
[1747452289945,4.03194116,2480.2,2479.8,0.55]
[1747452290280,4.03194116,2480.2,2479.9,1.27586404]
[1747452291347,4.81518788,2480.7,2480.0,0.55]
[1747452291649,4.03183367,2480.3,2480.1,0.7979]
[1747452291955,4.03183367,2480.3,2480.2,8.176]
[1747452293067,4.03235891,2480.0,2479.8,0.7979]
[1747452293254,4.03196812,2480.2,2479.9,8.176]
[1747452293464,4.03193991,2480.2,2479.9,8.176]
[1747452294384,4.03180279,2480.3,2479.9,8.176]
[1747452294557,6.22644925,2480.5,2480.0,0.7979]
[1747452294558,4.03165287,2480.4,2480.0,0.7979]
[1747452294881,4.03238341,2480.0,2479.6,18.2079]
[1747452295254,4.03238341,2480.0,2479.7,8.176]
[1747452295781,4.03246232,2479.9,2479.7,8.176]
[1747452296293,4.8275149,2480.2,2479.7,8.176]
[1747452296476,4.0325058,2479.9,2479.7,8.176]
[1747452296990,4.03258327,2479.8,2479.7,8.176]
[1747452297387,4.03274589,2479.7,2479.6,17.41]
[1747452297554,4.03335772,2479.4,2479.0,0.8153]
[1747452297754,4.03335772,2479.4,2479.1,8.176]
[1747452297987,4.03314503,2479.5,2479.1,8.176]
[1747452298192,4.03329187,2479.4,2479.1,8.176]
[1747452300190,4.03315893,2479.5,2479.1,10.81633]
[1747452300565,8.181,2479.6,2479.1,10.81633]
[1747452300784,12.21657133,2479.9,2479.2,4.58346122]
[1747452300980,4.82771592,2480.1,2479.4,0.55]
[1747452301173,4.03198029,2480.2,2479.7,4.84802009]
[1747452301367,4.0316078,2480.4,2479.9,4.58233759]
[1747452301574,4.03140599,2480.6,2480.0,4.03225806]
[1747452301773,12.21640599,2480.6,2480.0,4.03225806]
[1747452301980,4.03147492,2480.5,2480.0,4.03225806]
[1747452304095,0.7955,2480.8,2480.2,0.55]
[1747452304393,0.7955,2480.8,2480.3,8.187]
[1747452304394,4.03106022,2480.8,2480.3,8.187]
[1747452304593,4.03106022,2480.8,2480.3,8.7554152]
[1747452304889,8.171,2481.0,2480.3,8.7554152]
[1747452305091,4.03180733,2480.3,2480.1,0.8153]
[1747452305259,4.03144527,2480.5,2480.4,8.187]
[1747452305592,12.21544527,2480.5,2480.4,8.187]
[1747452306183,12.20944527,2480.5,2480.4,8.187]
[1747452307094,4.03119879,2480.7,2480.4,8.187]
[1747452307268,2.9575435,2480.9,2480.4,8.187]
[1747452307269,8.9416,2480.9,2480.4,8.187]